[Event "Late-Titled-Tuesday-Blitz-June-04-2024"]
[Site "Chess.com"]
[Date "2024.06.04"]
[Round "1"]
[White "bascheyaro"]
[Black "TheoSlade"]
[Result "1-0"]
[WhiteElo "2799"]
[BlackElo "2446"]
[TimeControl "180+1"]
[EndTime "14:06:35 PDT"]
[Termination "bascheyaro won by resignation"]

1. d4 {[%clk 0:02:55.7]} 1... d5 {[%clk 0:02:59.7]} 2. c4 {[%clk 0:02:55.8]}
2... e6 {[%clk 0:03:00.2]} 3. Nc3 {[%clk 0:02:56]} 3... a6 {[%clk 0:03:00.5]} 4.
Bf4 {[%clk 0:02:56.1]} 4... dxc4 {[%clk 0:03:00.1]} 5. e3 {[%clk 0:02:56.5]}
5... b5 {[%clk 0:02:58.7]} 6. a4 {[%clk 0:02:56.5]} 6... b4 {[%clk 0:02:45.9]}
7. Nb1 {[%clk 0:02:54]} 7... c5 {[%clk 0:02:43.1]} 8. Bxc4 {[%clk 0:02:49.7]}
8... cxd4 {[%clk 0:02:39.3]} 9. exd4 {[%clk 0:02:49.2]} 9... Nf6 {[%clk
0:02:35.5]} 10. Nf3 {[%clk 0:02:48.4]} 10... Bd6 {[%clk 0:02:34.5]} 11. Ne5
{[%clk 0:02:42.7]} 11... O-O {[%clk 0:02:30.9]} 12. O-O {[%clk 0:02:42.2]} 12...
Bb7 {[%clk 0:02:30.9]} 13. Nd2 {[%clk 0:02:41.9]} 13... Nc6 {[%clk 0:02:28.5]}
14. Ndf3 {[%clk 0:02:41]} 14... Rc8 {[%clk 0:02:21.7]} 15. Rc1 {[%clk 0:02:39]}
15... Ne7 {[%clk 0:02:13.8]} 16. Bg3 {[%clk 0:02:21.3]} 16... Nf5 {[%clk
0:02:10.5]} 17. Qd3 {[%clk 0:02:16.5]} 17... Nxg3 {[%clk 0:02:01.1]} 18. hxg3
{[%clk 0:02:13.9]} 18... Bxe5 {[%clk 0:02:01.7]} 19. Nxe5 {[%clk 0:02:10.9]}
19... Qd6 {[%clk 0:01:57.4]} 20. a5 {[%clk 0:02:02.4]} 20... Rfd8 {[%clk
0:01:57.5]} 21. Rfd1 {[%clk 0:01:59.1]} 21... Rc7 {[%clk 0:01:50.7]} 22. Qe2
{[%clk 0:01:49.7]} 22... g6 {[%clk 0:01:43.3]} 23. b3 {[%clk 0:01:49.2]} 23...
Kg7 {[%clk 0:01:43]} 24. f3 {[%clk 0:01:42.9]} 24... Nd5 {[%clk 0:01:42.4]} 25.
Bxd5 {[%clk 0:01:16.6]} 25... Rxc1 {[%clk 0:01:32.9]} 26. Rxc1 {[%clk
0:01:12.8]} 26... Qxd5 {[%clk 0:01:31.7]} 27. Rc7 {[%clk 0:01:05.7]} 27... Qxd4+
{[%clk 0:01:29.4]} 28. Kh2 {[%clk 0:01:05.7]} 28... Bd5 {[%clk 0:01:16.7]} 29.
Rxf7+ {[%clk 0:01:05.6]} 29... Kg8 {[%clk 0:01:17.3]} 30. Rc7 {[%clk 0:00:55.4]}
30... Bxb3 {[%clk 0:01:13.2]} 31. Ng4 {[%clk 0:00:52.7]} 31... Kh8 {[%clk
0:00:49.9]} 32. Qe4 {[%clk 0:00:29.3]} 32... Qxe4 {[%clk 0:00:42.8]} 33. Nf6
{[%clk 0:00:29.4]} 33... g5 {[%clk 0:00:21.2]} 34. fxe4 {[%clk 0:00:29.1]} 1-0

[Event "Late-Titled-Tuesday-Blitz-June-04-2024"]
[Site "Chess.com"]
[Date "2024.06.04"]
[Round "1"]
[White "StellarChess"]
[Black "boguszp"]
[Result "1-0"]
[WhiteElo "2533"]
[BlackElo "1989"]
[TimeControl "180+1"]
[EndTime "14:06:35 PDT"]
[Termination "StellarChess won on time"]

1. d4 {[%clk 0:02:57.8]} 1... d5 {[%clk 0:02:59.3]} 2. Nf3 {[%clk 0:02:57.8]}
2... Nf6 {[%clk 0:02:58.3]} 3. e3 {[%clk 0:02:58.3]} 3... Bf5 {[%clk 0:02:57.6]}
4. Bd3 {[%clk 0:02:58]} 4... Bxd3 {[%clk 0:02:56.8]} 5. Qxd3 {[%clk 0:02:58.9]}
5... c6 {[%clk 0:02:56]} 6. O-O {[%clk 0:02:59.6]} 6... e6 {[%clk 0:02:55.6]} 7.
Nbd2 {[%clk 0:03:00.2]} 7... Nbd7 {[%clk 0:02:54.8]} 8. b3 {[%clk 0:03:00.9]}
8... Bd6 {[%clk 0:02:54.9]} 9. Bb2 {[%clk 0:03:01.5]} 9... Qc7 {[%clk
0:02:43.2]} 10. e4 {[%clk 0:03:01.8]} 10... dxe4 {[%clk 0:02:40.7]} 11. Nxe4
{[%clk 0:03:02.7]} 11... Nxe4 {[%clk 0:02:39.8]} 12. Qxe4 {[%clk 0:03:03.6]}
12... O-O {[%clk 0:02:31.3]} 13. Qh4 {[%clk 0:02:56.7]} 13... h6 {[%clk
0:02:25.6]} 14. Rfe1 {[%clk 0:02:55.8]} 14... Rae8 {[%clk 0:02:13.6]} 15. Ne5
{[%clk 0:02:50.3]} 15... Nf6 {[%clk 0:02:02.6]} 16. c4 {[%clk 0:02:38]} 16... c5
{[%clk 0:02:00.7]} 17. dxc5 {[%clk 0:02:31.9]} 17... Bxc5 {[%clk 0:01:56.7]} 18.
Ng4 {[%clk 0:02:23.6]} 18... Nxg4 {[%clk 0:01:49.4]} 19. Qxg4 {[%clk 0:02:24.5]}
19... f5 {[%clk 0:01:33.1]} 20. Qf3 {[%clk 0:02:04]} 20... Rf7 {[%clk
0:01:19.7]} 21. Be5 {[%clk 0:02:00.6]} 21... Bd6 {[%clk 0:01:16.7]} 22. Bxd6
{[%clk 0:01:59.2]} 22... Qxd6 {[%clk 0:01:16.6]} 23. Rad1 {[%clk 0:02:00.1]}
23... Qc7 {[%clk 0:01:12]} 24. Qe3 {[%clk 0:01:55.2]} 24... b6 {[%clk
0:01:04.6]} 25. Qe5 {[%clk 0:01:54.3]} 25... Qxe5 {[%clk 0:00:54.2]} 26. Rxe5
{[%clk 0:01:55.2]} 26... Rfe7 {[%clk 0:00:54]} 27. c5 {[%clk 0:01:49]} 27...
bxc5 {[%clk 0:00:52.3]} 28. Rxc5 {[%clk 0:01:49.9]} 28... e5 {[%clk 0:00:48.9]}
29. Rdc1 {[%clk 0:01:47.1]} 29... g6 {[%clk 0:00:45.6]} 30. Rc8 {[%clk
0:01:45.1]} 30... Kf7 {[%clk 0:00:43.2]} 31. Rxe8 {[%clk 0:01:44.9]} 31... Rxe8
{[%clk 0:00:38.4]} 32. Kf1 {[%clk 0:01:39.2]} 32... Re7 {[%clk 0:00:37.5]} 33.
Ke2 {[%clk 0:01:39.3]} 33... Kf6 {[%clk 0:00:35.3]} 34. Rc6+ {[%clk 0:01:38.2]}
34... Re6 {[%clk 0:00:34.5]} 35. Rc8 {[%clk 0:01:36.7]} 35... Re7 {[%clk
0:00:32.9]} 36. Kd3 {[%clk 0:01:30]} 36... h5 {[%clk 0:00:27]} 37. h4 {[%clk
0:01:28.7]} 37... e4+ {[%clk 0:00:24]} 38. Ke3 {[%clk 0:01:23.1]} 38... Ke5
{[%clk 0:00:20.1]} 39. Rc5+ {[%clk 0:01:22.1]} 39... Kd6 {[%clk 0:00:19.2]} 40.
Ra5 {[%clk 0:01:20.4]} 40... Ke6 {[%clk 0:00:13.3]} 41. Kf4 {[%clk 0:01:14.8]}
41... Kf6 {[%clk 0:00:09.4]} 42. Ra6+ {[%clk 0:01:14.7]} 42... Kf7 {[%clk
0:00:06.5]} 43. g3 {[%clk 0:01:08.8]} 1-0

[Event "Late-Titled-Tuesday-Blitz-June-04-2024"]
[Site "Chess.com"]
[Date "2024.06.04"]
[Round "1"]
[White "yoelpolanco"]
[Black "jk13"]
[Result "0-1"]
[WhiteElo "2376"]
[BlackElo "2687"]
[TimeControl "180+1"]
[EndTime "14:06:36 PDT"]
[Termination "jk13 won by resignation"]

1. d4 {[%clk 0:03:00.3]} 1... Nf6 {[%clk 0:02:57.7]} 2. Nf3 {[%clk 0:03:00.7]}
2... e6 {[%clk 0:02:57.2]} 3. Bg5 {[%clk 0:03:00.9]} 3... h6 {[%clk 0:02:54.9]}
4. Bxf6 {[%clk 0:02:58.9]} 4... Qxf6 {[%clk 0:02:54.8]} 5. Nc3 {[%clk
0:02:59.8]} 5... d6 {[%clk 0:02:54.6]} 6. e4 {[%clk 0:02:58.8]} 6... Nd7 {[%clk
0:02:55.1]} 7. Bd3 {[%clk 0:02:56.8]} 7... Qe7 {[%clk 0:02:55.7]} 8. Qe2 {[%clk
0:02:56.1]} 8... g6 {[%clk 0:02:56.4]} 9. O-O-O {[%clk 0:02:54.1]} 9... Bg7
{[%clk 0:02:56.8]} 10. e5 {[%clk 0:02:54.5]} 10... dxe5 {[%clk 0:02:48]} 11.
Nxe5 {[%clk 0:02:51.7]} 11... Nxe5 {[%clk 0:02:45.4]} 12. dxe5 {[%clk
0:02:52.6]} 12... Qg5+ {[%clk 0:02:45.3]} 13. Kb1 {[%clk 0:02:47.8]} 13... Qxe5
{[%clk 0:02:45.3]} 14. Qf3 {[%clk 0:02:36.7]} 14... O-O {[%clk 0:02:21.7]} 15.
Rhe1 {[%clk 0:02:34.7]} 15... Qf6 {[%clk 0:02:19.6]} 16. Qxf6 {[%clk 0:02:32.4]}
16... Bxf6 {[%clk 0:02:19.5]} 17. Nb5 {[%clk 0:02:32.6]} 17... c6 {[%clk
0:02:17.6]} 18. Nd6 {[%clk 0:02:32.9]} 18... Bd7 {[%clk 0:02:03.2]} 19. Be4
{[%clk 0:02:22.6]} 19... Rab8 {[%clk 0:01:51.1]} 20. b3 {[%clk 0:02:11.4]} 20...
Rfd8 {[%clk 0:01:48.8]} 21. Rd3 {[%clk 0:02:04.9]} 21... Kf8 {[%clk 0:01:39]}
22. Red1 {[%clk 0:02:04.1]} 22... Ke7 {[%clk 0:01:36.2]} 23. g3 {[%clk
0:02:01.6]} 23... Be5 {[%clk 0:01:33.4]} 24. Nc4 {[%clk 0:01:57.7]} 24... Bc7
{[%clk 0:01:33.4]} 25. f4 {[%clk 0:01:52.9]} 25... Be8 {[%clk 0:01:29.2]} 26.
Rxd8 {[%clk 0:01:51.8]} 26... Rxd8 {[%clk 0:01:28.1]} 27. Rxd8 {[%clk
0:01:52.2]} 27... Kxd8 {[%clk 0:01:25.9]} 28. Bf3 {[%clk 0:01:46.4]} 28... Ke7
{[%clk 0:01:23.3]} 29. a4 {[%clk 0:01:44.5]} 29... g5 {[%clk 0:01:09.9]} 30.
fxg5 {[%clk 0:01:40.9]} 30... hxg5 {[%clk 0:01:10.8]} 31. Bh5 {[%clk 0:01:41.3]}
31... Bd7 {[%clk 0:01:05.4]} 32. Kc1 {[%clk 0:01:40.7]} 32... f5 {[%clk
0:01:04.5]} 33. Kd2 {[%clk 0:01:40.4]} 33... Kf6 {[%clk 0:01:03]} 34. Ke2 {[%clk
0:01:39.6]} 34... e5 {[%clk 0:00:58.8]} 35. g4 {[%clk 0:01:37.7]} 35... fxg4
{[%clk 0:00:52.9]} 36. Ne3 {[%clk 0:01:29.8]} 36... e4 {[%clk 0:00:48.2]} 37.
Bxg4 {[%clk 0:01:28.6]} 37... Bxg4+ {[%clk 0:00:39.8]} 38. Nxg4+ {[%clk
0:01:29.5]} 38... Kf5 {[%clk 0:00:40.2]} 39. h3 {[%clk 0:01:29.6]} 39... Kf4
{[%clk 0:00:39.5]} 40. Kf2 {[%clk 0:01:27.6]} 40... Bb6+ {[%clk 0:00:37.1]} 41.
Kg2 {[%clk 0:01:24.6]} 41... e3 {[%clk 0:00:35.4]} 42. Nh2 {[%clk 0:01:23.4]}
42... e2 {[%clk 0:00:34.2]} 43. Nf3 {[%clk 0:01:23.7]} 43... Be3 {[%clk
0:00:32.6]} 44. Ne1 {[%clk 0:01:22.9]} 44... b5 {[%clk 0:00:26.2]} 45. axb5
{[%clk 0:01:21.6]} 45... cxb5 {[%clk 0:00:26.3]} 46. Nf3 {[%clk 0:01:14.2]}
46... a5 {[%clk 0:00:25.6]} 47. Ne1 {[%clk 0:01:06.8]} 47... a4 {[%clk
0:00:25.4]} 48. bxa4 {[%clk 0:01:06.5]} 48... bxa4 {[%clk 0:00:26.3]} 49. Nd3+
{[%clk 0:01:06.8]} 49... Ke4 {[%clk 0:00:25.4]} 50. Kg3 {[%clk 0:00:59.4]} 50...
a3 {[%clk 0:00:23.1]} 0-1

[Event "Late-Titled-Tuesday-Blitz-June-04-2024"]
[Site "Chess.com"]
[Date "2024.06.04"]
[Round "1"]
[White "HansOnTwitch"]
[Black "Squirlolz"]
[Result "1-0"]
[WhiteElo "3126"]
[BlackElo "2521"]
[TimeControl "180+1"]
[EndTime "14:06:37 PDT"]
[Termination "HansOnTwitch won by resignation"]

1. e3 {[%clk 0:02:44.6]} 1... d5 {[%clk 0:02:55.4]} 2. Nf3 {[%clk 0:02:44.1]}
2... Nf6 {[%clk 0:02:55.4]} 3. c4 {[%clk 0:02:41.6]} 3... c6 {[%clk 0:02:54.5]}
4. Nc3 {[%clk 0:02:40.9]} 4... e6 {[%clk 0:02:51]} 5. b3 {[%clk 0:02:40.9]} 5...
Bd6 {[%clk 0:02:47.4]} 6. Bb2 {[%clk 0:02:40.9]} 6... O-O {[%clk 0:02:47.1]} 7.
Be2 {[%clk 0:02:40.4]} 7... a6 {[%clk 0:02:45.2]} 8. d4 {[%clk 0:02:40.2]} 8...
b5 {[%clk 0:02:42.5]} 9. O-O {[%clk 0:02:39.9]} 9... Nbd7 {[%clk 0:02:41.1]} 10.
Qc2 {[%clk 0:02:37.6]} 10... bxc4 {[%clk 0:02:36.7]} 11. bxc4 {[%clk 0:02:37.9]}
11... Rb8 {[%clk 0:02:37.5]} 12. Rab1 {[%clk 0:02:37.9]} 12... dxc4 {[%clk
0:02:35.1]} 13. Bxc4 {[%clk 0:02:37.4]} 13... Qe7 {[%clk 0:02:35.3]} 14. Ng5
{[%clk 0:02:28.2]} 14... h6 {[%clk 0:02:17.5]} 15. Nge4 {[%clk 0:02:27.4]} 15...
c5 {[%clk 0:02:12.1]} 16. Nxd6 {[%clk 0:02:22.8]} 16... Qxd6 {[%clk 0:02:13]}
17. Ba3 {[%clk 0:02:21.5]} 17... Bb7 {[%clk 0:02:08.6]} 18. Rfd1 {[%clk
0:02:19.7]} 18... Rfc8 {[%clk 0:02:05.2]} 19. f3 {[%clk 0:02:15]} 19... Qc7
{[%clk 0:01:48.6]} 20. dxc5 {[%clk 0:02:13.7]} 20... Nxc5 {[%clk 0:01:47.3]} 21.
Rbc1 {[%clk 0:02:13.3]} 21... Qb6 {[%clk 0:01:39.7]} 22. Qe2 {[%clk 0:02:11]}
22... Qa7 {[%clk 0:01:23.6]} 23. Bb2 {[%clk 0:02:09.9]} 23... Ba8 {[%clk
0:01:19.7]} 24. Ba1 {[%clk 0:02:09.1]} 24... Rd8 {[%clk 0:01:14.4]} 25. h3
{[%clk 0:02:01.2]} 25... Qe7 {[%clk 0:01:09.3]} 26. Rxd8+ {[%clk 0:01:57.9]}
26... Rxd8 {[%clk 0:01:08.6]} 27. Rd1 {[%clk 0:01:58.8]} 27... a5 {[%clk
0:01:02.5]} 28. Nb5 {[%clk 0:01:58.3]} 28... Rxd1+ {[%clk 0:00:55.9]} 29. Qxd1
{[%clk 0:01:59.2]} 29... Bd5 {[%clk 0:00:54.6]} 30. Qd4 {[%clk 0:01:57.8]} 30...
Bxc4 {[%clk 0:00:53.2]} 31. Qxc4 {[%clk 0:01:58.7]} 31... Ncd7 {[%clk
0:00:42.7]} 32. Bb2 {[%clk 0:01:58.6]} 32... Qc5 {[%clk 0:00:40.2]} 33. Qxc5
{[%clk 0:01:55.8]} 33... Nxc5 {[%clk 0:00:41.1]} 34. Kf1 {[%clk 0:01:56.2]}
34... Nd5 {[%clk 0:00:38]} 35. Ke2 {[%clk 0:01:56.3]} 35... Nb4 {[%clk
0:00:37.9]} 36. a3 {[%clk 0:01:56.8]} 36... Nc6 {[%clk 0:00:35.3]} 37. Kd2
{[%clk 0:01:51.3]} 37... f6 {[%clk 0:00:33.7]} 38. Kc3 {[%clk 0:01:48.9]} 38...
Kf7 {[%clk 0:00:33.6]} 39. Kc4 {[%clk 0:01:49.2]} 39... Nd7 {[%clk 0:00:33.8]}
40. Nd6+ {[%clk 0:01:45]} 40... Ke7 {[%clk 0:00:33.6]} 41. Nb7 {[%clk
0:01:45.9]} 41... Nce5+ {[%clk 0:00:23.3]} 42. Kb5 {[%clk 0:01:43.3]} 42... Nd3
{[%clk 0:00:22.8]} 43. Bc3 {[%clk 0:01:44]} 43... e5 {[%clk 0:00:10.6]} 44. Kxa5
{[%clk 0:01:40.3]} 44... f5 {[%clk 0:00:10.7]} 45. Kb5 {[%clk 0:01:37.8]} 45...
g5 {[%clk 0:00:10.9]} 46. a4 {[%clk 0:01:37.7]} 46... f4 {[%clk 0:00:11.1]} 47.
e4 {[%clk 0:01:37.9]} 47... h5 {[%clk 0:00:11.4]} 48. a5 {[%clk 0:01:37.7]}
48... Nb8 {[%clk 0:00:09.5]} 49. Nc5 {[%clk 0:01:36.4]} 49... Nxc5 {[%clk
0:00:07]} 50. Kxc5 {[%clk 0:01:37.3]} 50... Ke6 {[%clk 0:00:07.7]} 51. Kb6
{[%clk 0:01:37.9]} 51... g4 {[%clk 0:00:07.6]} 52. hxg4 {[%clk 0:01:37.8]} 52...
hxg4 {[%clk 0:00:08.5]} 53. fxg4 {[%clk 0:01:38.2]} 53... Kf6 {[%clk 0:00:08.9]}
54. Kb7 {[%clk 0:01:37.7]} 54... Nd7 {[%clk 0:00:09.4]} 55. Kc6 {[%clk 0:01:38]}
55... Nb8+ {[%clk 0:00:09.7]} 56. Kb7 {[%clk 0:01:38]} 56... Nd7 {[%clk
0:00:10.1]} 57. Bb4 {[%clk 0:01:38.7]} 57... Kg5 {[%clk 0:00:09.3]} 58. a6
{[%clk 0:01:39.3]} 1-0

[Event "Late-Titled-Tuesday-Blitz-June-04-2024"]
[Site "Chess.com"]
[Date "2024.06.04"]
[Round "1"]
[White "NajdorfPlayerc5"]
[Black "AradNazari"]
[Result "1-0"]
[WhiteElo "2435"]
[BlackElo "2731"]
[TimeControl "180+1"]
[EndTime "14:06:44 PDT"]
[Termination "NajdorfPlayerc5 won by checkmate"]

1. e4 {[%clk 0:03:00.3]} 1... c5 {[%clk 0:02:55.6]} 2. Nf3 {[%clk 0:02:59.7]}
2... d6 {[%clk 0:02:56]} 3. d4 {[%clk 0:02:59.9]} 3... cxd4 {[%clk 0:02:56.9]}
4. Nxd4 {[%clk 0:03:00.2]} 4... Nf6 {[%clk 0:02:57.4]} 5. Nc3 {[%clk 0:03:00.4]}
5... a6 {[%clk 0:02:57.8]} 6. Be3 {[%clk 0:02:56.2]} 6... e5 {[%clk 0:02:56.3]}
7. Nb3 {[%clk 0:02:55.7]} 7... Be7 {[%clk 0:02:56.4]} 8. f3 {[%clk 0:02:55.6]}
8... Be6 {[%clk 0:02:56.9]} 9. Qd2 {[%clk 0:02:55.7]} 9... Nbd7 {[%clk
0:02:57.4]} 10. O-O-O {[%clk 0:02:53.7]} 10... b5 {[%clk 0:02:57.7]} 11. g4
{[%clk 0:02:39.9]} 11... b4 {[%clk 0:02:56.6]} 12. Nd5 {[%clk 0:02:34.5]} 12...
Bxd5 {[%clk 0:02:56.6]} 13. exd5 {[%clk 0:02:35.4]} 13... Nb6 {[%clk 0:02:57.1]}
14. Qxb4 {[%clk 0:01:26.7]} 14... Nfxd5 {[%clk 0:02:47.3]} 15. Bxb6 {[%clk
0:01:22.9]} 15... Qxb6 {[%clk 0:02:32.9]} 16. Qa4+ {[%clk 0:01:14.7]} 16... Kf8
{[%clk 0:02:26]} 17. Rxd5 {[%clk 0:01:13]} 17... Qe3+ {[%clk 0:02:25.4]} 18. Rd2
{[%clk 0:01:01.1]} 18... Qxf3 {[%clk 0:02:06]} 19. Bg2 {[%clk 0:00:58.6]} 19...
Qe3 {[%clk 0:01:58]} 20. Bxa8 {[%clk 0:00:57.3]} 20... Bg5 {[%clk 0:01:57.4]}
21. Qd7 {[%clk 0:00:53.8]} 21... g6 {[%clk 0:01:52.7]} 22. Rf1 {[%clk
0:00:49.2]} 22... f6 {[%clk 0:01:50.1]} 23. Qxd6+ {[%clk 0:00:41.8]} 23... Kg7
{[%clk 0:01:50]} 24. Bg2 {[%clk 0:00:36.6]} 24... a5 {[%clk 0:01:50.4]} 25. h4
{[%clk 0:00:35.7]} 25... Bxh4 {[%clk 0:01:49.9]} 26. Qe7+ {[%clk 0:00:35.2]}
26... Kh6 {[%clk 0:01:49.9]} 27. Rh1 {[%clk 0:00:35.2]} 27... Qg3 {[%clk
0:01:48.1]} 28. Be4 {[%clk 0:00:32.5]} 28... Kg5 {[%clk 0:01:46.9]} 29. Rf1
{[%clk 0:00:28.3]} 29... Kh6 {[%clk 0:01:43.1]} 30. Rd7 {[%clk 0:00:24.4]} 30...
Qe3+ {[%clk 0:01:41.3]} 31. Nd2 {[%clk 0:00:22.7]} 31... Be1 {[%clk 0:01:27.6]}
32. Qg7+ {[%clk 0:00:21.4]} 32... Kg5 {[%clk 0:01:28.1]} 33. Qxf6+ {[%clk
0:00:21.5]} 33... Kxg4 {[%clk 0:01:28.1]} 34. Qf3+ {[%clk 0:00:19.5]} 34... Qxf3
{[%clk 0:01:26.8]} 35. Bxf3+ {[%clk 0:00:20.4]} 35... Kg3 {[%clk 0:01:26.5]} 36.
Rxe1 {[%clk 0:00:21.3]} 36... h5 {[%clk 0:01:26.9]} 37. Rg7 {[%clk 0:00:21]}
37... Rh6 {[%clk 0:01:26.7]} 38. Bxh5 {[%clk 0:00:20.9]} 38... Rxh5 {[%clk
0:01:27]} 39. Rxg6+ {[%clk 0:00:21.1]} 39... Kf2 {[%clk 0:01:27.7]} 40. Rd1
{[%clk 0:00:17.6]} 40... Ke2 {[%clk 0:01:27]} 41. Re6 {[%clk 0:00:16.7]} 41...
a4 {[%clk 0:01:26.4]} 42. Nc4 {[%clk 0:00:16.6]} 42... Rh4 {[%clk 0:01:25.5]}
43. Rxe5+ {[%clk 0:00:16.2]} 43... Kf2 {[%clk 0:01:26.1]} 44. Nb6 {[%clk
0:00:16.1]} 44... a3 {[%clk 0:01:24.3]} 45. bxa3 {[%clk 0:00:15.6]} 45... Rh6
{[%clk 0:01:25.2]} 46. Nc4 {[%clk 0:00:14.4]} 46... Kf3 {[%clk 0:01:25.6]} 47.
Kb2 {[%clk 0:00:13.9]} 47... Rc6 {[%clk 0:01:25.6]} 48. Rd3+ {[%clk 0:00:14.6]}
48... Kf4 {[%clk 0:01:25.6]} 49. Kb3 {[%clk 0:00:15.5]} 49... Rc8 {[%clk
0:01:25.8]} 50. a4 {[%clk 0:00:15.5]} 50... Rb8+ {[%clk 0:01:26]} 51. Rb5 {[%clk
0:00:16.1]} 51... Re8 {[%clk 0:01:25.9]} 52. a5 {[%clk 0:00:16.2]} 52... Re6
{[%clk 0:01:26.7]} 53. Kb4 {[%clk 0:00:16.3]} 53... Re1 {[%clk 0:01:27.6]} 54.
a6 {[%clk 0:00:16]} 54... Ra1 {[%clk 0:01:28.5]} 55. Ra3 {[%clk 0:00:15.2]}
55... Rb1+ {[%clk 0:01:29.4]} 56. Kc5 {[%clk 0:00:15.4]} 56... Rd1 {[%clk
0:01:30.2]} 57. a7 {[%clk 0:00:15.4]} 57... Rd8 {[%clk 0:01:31.1]} 58. a8=Q
{[%clk 0:00:16.3]} 58... Rd7 {[%clk 0:01:31.7]} 59. Qf8+ {[%clk 0:00:15.7]}
59... Ke4 {[%clk 0:01:31.4]} 60. Re3# {[%clk 0:00:15.2]} 1-0

[Event "Late-Titled-Tuesday-Blitz-June-04-2024"]
[Site "Chess.com"]
[Date "2024.06.04"]
[Round "1"]
[White "tactic"]
[Black "HanSchut"]
[Result "1/2-1/2"]
[WhiteElo "2575"]
[BlackElo "2266"]
[TimeControl "180+1"]
[EndTime "14:06:45 PDT"]
[Termination "Game drawn by repetition"]

1. e4 {[%clk 0:03:00.9]} 1... c5 {[%clk 0:02:59.5]} 2. c3 {[%clk 0:03:00.8]}
2... g6 {[%clk 0:02:59.5]} 3. d4 {[%clk 0:03:00.6]} 3... cxd4 {[%clk 0:03:00.4]}
4. cxd4 {[%clk 0:03:01.5]} 4... d5 {[%clk 0:03:01]} 5. e5 {[%clk 0:03:01.4]}
5... Nc6 {[%clk 0:03:00.9]} 6. Nf3 {[%clk 0:03:00.9]} 6... Bg4 {[%clk 0:03:01]}
7. Bb5 {[%clk 0:03:00.9]} 7... Rc8 {[%clk 0:03:00.9]} 8. h3 {[%clk 0:02:56.9]}
8... Bxf3 {[%clk 0:02:59.9]} 9. Qxf3 {[%clk 0:02:57.8]} 9... e6 {[%clk
0:02:51.3]} 10. O-O {[%clk 0:02:54.2]} 10... a6 {[%clk 0:02:51.8]} 11. Bxc6+
{[%clk 0:02:54.3]} 11... Rxc6 {[%clk 0:02:52.7]} 12. Bf4 {[%clk 0:02:50.1]}
12... Nh6 {[%clk 0:02:49.6]} 13. Nc3 {[%clk 0:02:49.9]} 13... Nf5 {[%clk
0:02:49.9]} 14. Rad1 {[%clk 0:02:49.6]} 14... h5 {[%clk 0:02:50.1]} 15. Ne2
{[%clk 0:02:27.1]} 15... Qb6 {[%clk 0:02:44.5]} 16. b3 {[%clk 0:02:19.6]} 16...
Bb4 {[%clk 0:02:40.7]} 17. Qd3 {[%clk 0:02:10.1]} 17... Qb5 {[%clk 0:02:36.5]}
18. Qxb5 {[%clk 0:01:58.1]} 18... axb5 {[%clk 0:02:37.4]} 19. g4 {[%clk
0:01:47.2]} 19... hxg4 {[%clk 0:02:36.6]} 20. hxg4 {[%clk 0:01:48.1]} 20... Nh4
{[%clk 0:02:22.6]} 21. Rd3 {[%clk 0:01:47.2]} 21... Be7 {[%clk 0:02:18.1]} 22.
Nc3 {[%clk 0:01:41.4]} 22... b4 {[%clk 0:02:12.5]} 23. Nd1 {[%clk 0:00:51.4]}
23... Rc2 {[%clk 0:02:03.1]} 24. Ne3 {[%clk 0:00:51]} 24... Rxa2 {[%clk
0:01:59.4]} 25. Rc1 {[%clk 0:00:47.7]} 25... Kd7 {[%clk 0:01:57]} 26. Bg3 {[%clk
0:00:24.6]} 26... Nf3+ {[%clk 0:01:54.2]} 27. Kg2 {[%clk 0:00:24.6]} 27... Ng5
{[%clk 0:01:54.7]} 28. Bf4 {[%clk 0:00:18.6]} 28... Ne4 {[%clk 0:01:53.2]} 29.
Nd1 {[%clk 0:00:18.8]} 29... Bh4 {[%clk 0:01:48.5]} 30. Be3 {[%clk 0:00:18.3]}
30... Rc8 {[%clk 0:01:41.6]} 31. Rxc8 {[%clk 0:00:16.8]} 31... Kxc8 {[%clk
0:01:42.5]} 32. Kf3 {[%clk 0:00:15.7]} 32... Kd7 {[%clk 0:01:38.6]} 33. Kg2
{[%clk 0:00:12.3]} 33... b5 {[%clk 0:01:35.7]} 34. Kf1 {[%clk 0:00:11.7]} 34...
Rc2 {[%clk 0:01:33.2]} 35. f3 {[%clk 0:00:11.6]} 35... Nc3 {[%clk 0:01:29.8]}
36. Nxc3 {[%clk 0:00:11.5]} 36... bxc3 {[%clk 0:01:30.7]} 37. b4 {[%clk
0:00:10.5]} 37... Be7 {[%clk 0:01:25]} 38. Rd1 {[%clk 0:00:07.8]} 38... Bxb4
{[%clk 0:01:24.8]} 39. Rb1 {[%clk 0:00:07.9]} 39... Ra2 {[%clk 0:01:25.4]} 40.
Rxb4 {[%clk 0:00:07.7]} 40... c2 {[%clk 0:01:25.2]} 41. Rxb5 {[%clk 0:00:05.8]}
41... Ra1+ {[%clk 0:01:23.5]} 42. Ke2 {[%clk 0:00:05.8]} 42... c1=Q {[%clk
0:01:24.4]} 43. Bxc1 {[%clk 0:00:05.7]} 43... Rxc1 {[%clk 0:01:25.3]} 44. Rb7+
{[%clk 0:00:06.1]} 44... Ke8 {[%clk 0:01:24.7]} 45. Ke3 {[%clk 0:00:06.8]} 45...
g5 {[%clk 0:01:24.2]} 46. Kf2 {[%clk 0:00:06.7]} 46... Kf8 {[%clk 0:01:21.8]}
47. Ke3 {[%clk 0:00:06.5]} 47... Kg7 {[%clk 0:01:22]} 48. Ke2 {[%clk 0:00:06.6]}
48... Rc3 {[%clk 0:01:21]} 49. Rd7 {[%clk 0:00:03.8]} 49... Ra3 {[%clk
0:01:20.5]} 50. Rb7 {[%clk 0:00:03.8]} 50... Rc3 {[%clk 0:01:20.7]} 51. Rd7
{[%clk 0:00:03.9]} 51... Ra3 {[%clk 0:01:21]} 52. Rb7 {[%clk 0:00:04.2]} 52...
Rc3 {[%clk 0:01:21.1]} 1/2-1/2